Cogmind - Beta 16 --- EXPLORER MODE // 2025.12.04 @ 15:06:04 Player: K.K.Y. Result: Destroyed by Shrapnel Trap Performance ------------- Evolutions (0) 0 Regions Visited (3) 600 Robots Destroyed (31) 155 Value Destroyed (632) 632 Prototype IDs (0) 0 Alien Tech Used (0) 0 Bonus (0) 0 TOTAL SCORE: 1387 Bonus ------- None Cogmind --------- Core Integrity 0/250 Matter 278/300 Energy 91/100 System Corruption 1% Temperature Cool (0) Movement Core (150) Ox2 Location -10/Subcaves Parts ------- > --- POWER (1) -------- (None) > --- PROPULSION (2) --- (None) > --- UTILITY (3) ------ Terrain Scan Processor Terrain Scan Processor > --- WEAPON (2) ------- Beamcaster Barrage Gun > --- INVENTORY (5) ---- Huge Storage Unit Mining Laser Peak State ------------ > --- POWER ------------ Light Nuclear Core > --- PROPULSION ------- Light Treads Light Treads > --- UTILITY ---------- Improved Terrain Scanner Terrain Scan Processor Terrain Scan Processor > --- WEAPON ----------- Particle Gun Beamcaster > --- INVENTORY -------- Huge Storage Unit Mining Laser [Rating: 19] Favorites ----------- Power Light Nuclear Core Engine Light Ion Engine Power Core Light Nuclear Core Propulsion Light Treads Treads Light Treads Wheel Wheel Flight Unit Flight Unit Utility Terrain Scan Processor Device Improved Terrain Scanner Processor Terrain Scan Processor Weapon Beamcaster Energy Gun Beamcaster Ballistic Gun Barrage Gun Build | -11 -10 -10 -10 ------- Run | Yrd Mat Min Sub Slots Evolved 1 | . 1 . . Power . | . . . . Propulsion . | . . . . Utility 1 | . 1 . . Weapon . | . . . . Parts Attached 19 | 7 7 4 1 Power 3 | 1 1 1 . Engine 2 | 1 1 . . Core 1 | . . 1 . Reactor . | . . . . Propulsion 8 | 4 3 1 . Treads 2 | 2 . . . Leg . | . . . . Wheel 2 | 2 . . . Hover . | . . . . Flight 4 | . 3 1 . Utility 3 | . 3 . . Device 1 | . 1 . . Storage . | . . . . Processor 2 | . 2 . . Hackware . | . . . . Protection . | . . . . Artifact . | . . . . Weapon 5 | 2 . 2 1 Energy Gun 4 | 2 . 2 . Energy Cannon . | . . . . Ballistic Gun 1 | . . . 1 Ballistic Cannon . | . . . . Launcher . | . . . . Special Weapon . | . . . . Impact Weapon . | . . . . Slashing Weapon . | . . . . Piercing Weapon . | . . . . Special Melee Weapon . | . . . . Unidentified Prototypes . | . . . . Parts Lost 7 | . 1 1 5 Power 1 | . . . 1 Propulsion 4 | . 1 1 2 Utility 1 | . . . 1 Weapon 1 | . . . 1 Highest Loss Streak 3 | . 1 1 3 To Critical Strikes 1 | . . . 1 Average Backups 2 | 1 4 3 2 Power . | . . . . Propulsion . | . 2 . . Utility . | . . 1 1 Weapon 1 | . 1 1 1 Tool/Special . | . . . . Unused Backups 2 | . . . 2 Power . | . . . . Propulsion . | . . . . Utility 1 | . . . 1 Weapon 1 | . . . 1 Tool/Special . | . . . . Average Slot Usage (%) 90 | . 85 98 90 Engine 4 | . 12 6 . Core 6 | . . 5 10 Treads 14 | . . 12 22 Flight 7 | . 20 11 . Device 10 | . 7 12 10 Processor 22 | . 15 25 25 Energy Gun 22 | . 24 24 21 Peak Build Rating 19 | 5 12 19 19 Average Rating 14 | 3 9 15 17 On Entrance 9 | . 5 12 19 Avg Prop Armor Cover (%) . | . . . . Naked Turns . | . . . . Heaviest Build 14 | 8 9 14 14 Greatest Support 40 | 40 20 40 40 Greatest Overweight (x) 2 | 2 2 . 2 Average Overweight (x) . | . . . . Largest Inventory Capacity 5 | 5 5 5 5 Average Capacity 5 | 5 5 5 5 Most Carried 5 | 5 5 5 3 Average Carried 2 | 1 4 3 2 Final Capacity 5 | 5 5 5 5 Final Carried 4 | 4 4 2 2 Class Distribution -------------------- 79% | Scavenger-Mutant 20% | Hacker-Mutant Dominant Class ---------------- Scavenger-Mutant | -10/Materials Scavenger-Mutant | -10/Mines Scavenger-Mutant | -10/Subcaves Resources | -11 -10 -10 -10 ----------- Run | Yrd Mat Min Sub Matter Collected 490 | 252 128 10 100 Remotely . | . . . . Salvage Created 1076 | 152 536 152 236 Parts 68 | 12 33 5 18 Haulers Intercepted 2 | . 2 . . Recyclers Shooed 3 | . 2 1 . Parts Field Recycled . | . . . . Retrieved Matter . | . . . . Parts Self-Destructed . | . . . . Prevented . | . . . . Parts Restored . | . . . . Kills | -11 -10 -10 -10 ------- Run | Yrd Mat Min Sub Combat Hostiles Destroyed 16 | . 7 3 6 Guns 15 | . 7 2 6 Classes Destroyed 10 | 2 6 1 1 Worker 2 | . 2 . . Builder 4 | . 4 . . Tunneler 3 | 3 . . . Hauler 2 | . 2 . . Recycler 3 | 1 2 . . Watcher 1 | . 1 . . Swarmer 4 | . 4 . . Grunt 5 | . 3 2 . Sentry 1 | . . 1 . Subdweller 6 | . . . 6 Best Kill Streak 6 | 3 6 2 1 Combat Bots Only 2 | . 2 2 1 Max Kills in Single Turn 2 | 1 2 1 1 Gunslinging . | . . . . Exploded . | . . . . Melee . | . . . . Uniques/NPCs Destroyed . | . . . . Combat | -11 -10 -10 -10 -------- Run | Yrd Mat Min Sub Hostile Shots Fired 110 | . 36 18 56 Missed 34 | . 13 9 12 Hits 76 | . 23 9 44 Projectile 76 | . 23 9 44 AOE 1 | . . 1 . Critical Strikes 3 | . . . 3 Damage Taken 860 | . 160 93 607 Core 256 | . 46 18 192 Absorbed by Shields . | . . . . Ignored by Resistances 522 | . 106 55 361 Core Remaining (%) 100 | 100 . . . Volleys Fired 118 | 8 46 11 53 Largest 2 | 2 2 2 2 Hottest 140 | 90 90 90 140 Shots Fired 185 | 16 84 22 63 Gun 185 | 16 84 22 63 Cannon . | . . . . Launcher . | . . . . Special . | . . . . Kinetic 3 | . . . 3 Thermal 182 | 16 84 22 60 Explosive . | . . . . Electromagnetic . | . . . . Robot Hit Streak 24 | 13 18 22 24 Robot Miss Streak 2 | . 2 1 1 Penetration Max . | . . . . Secondary Targets 1 | . 1 . . Max Gunslinging Chain 1 | . 1 . . Shots Hit Robots 149 | 13 66 20 50 Core Hits 50 | 5 26 7 12 Critical Kills . | . . . . Critical Parts Destroyed . | . . . . Critical Strikes 6 | . 1 2 3 Burn 6 | . 1 2 3 Melee Attacks . | . . . . Impact . | . . . . Slashing . | . . . . Piercing . | . . . . Sneak Attacks . | . . . . Combat Hostiles . | . . . . Follow-up Attacks . | . . . . Damage Inflicted 2469 | 152 1051 241 1025 Guns 2209 | 152 791 241 1025 Cannons . | . . . . Explosions 260 | . 260 . . Melee . | . . . . Ramming . | . . . . Kinetic 36 | . . . 36 Thermal 2433 | 152 1051 241 989 Explosive . | . . . . Electromagnetic . | . . . . Impact . | . . . . Slashing . | . . . . Piercing . | . . . . Highest Corruption 1 | . 1 1 1 Average Corruption 1 | . 1 1 1 Corruption Purged . | . . . . Corruption Blocked . | . . . . Effects 14 | . 1 2 11 Message Errors 2 | . 1 . 1 Matter Fused 4 | . . . 4 Heat Flow Errors 3 | . . 1 2 Energy Discharges 1 | . . . 1 Data Loss (minor) 1 | . . . 1 Data Loss (major) 1 | . . . 1 Alerts 1 | . . 1 . Weapon Failures 1 | . . . 1 Overload Shots . | . . . . Overflow Damage 126 | . 126 . . Projectiles . | . . . . Explosions 126 | . 126 . . Melee . | . . . . Knockbacks . | . . . . Impact . | . . . . Kinetic . | . . . . Secondary . | . . . . Self-Inflicted Damage . | . . . . Shots . | . . . . Rammed . | . . . . Targets Rammed . | . . . . Kicked . | . . . . Crushed . | . . . . Highest Temperature 319 | 120 264 319 217 Average Temperature 79 | 61 79 124 51 Received Heat Transfer 393 | . 66 81 246 Effects 2 | . 1 1 . Interference 2 | . 1 1 . Siege Activations . | . . . . Martial Activations . | . . . . Shielding Activations . | . . . . Robots Disrupted . | . . . . Combat Hostiles . | . . . . Robots Corrupted . | . . . . Combat Hostiles . | . . . . Parts Fried . | . . . . Impact Corruptions . | . . . . Robots Melted 1 | . . 1 . Combat Hostiles 1 | . . 1 . Parts Melted 9 | . 3 3 3 Heat Transferred 5580 | 421 2381 780 1998 Parts Sabotaged . | . . . . Parts Stolen . | . . . . Parts Stripped . | . . . . Power Chain Reactions . | . . . . Alert | -11 -10 -10 -10 ------- Run | Yrd Mat Min Sub Maximum Alert Level . | . . . . Low Security (%) 100 | 100 100 100 . Level 1 . | . . . . Level 2 . | . . . . Level 3 . | . . . . Level 4 . | . . . . Level 5 . | . . . . High Security . | . . . . Max Security . | . . . . Peak Influence 83 | 15 83 30 . Initial . | . . . . Average 15 | 1 29 2 . Influence Increases 349 | 20 259 70 . Destroy 0b10 Robot/C 200 | . 140 60 . Destroy 0b10 Robot/NC 75 | 20 55 . . Destroy Leader 46 | . 36 10 . Disable Machine 12 | . 12 . . Destroy Structure 16 | . 16 . . Influence Decreases 349 | 20 259 70 . Time Decay 344 | 20 259 65 . Lost Part 5 | . . 5 . Squads Dispatched . | . . . . Investigation . | . . . . Extermination . | . . . . Reinforcement . | . . . . Assault . | . . . . Garrison . | . . . . Intercept . | . . . . Searches Triggered . | . . . . Construction Impeded . | . . . . Haulers Reinforced . | . . . . Active Scanning Responses . | . . . . Cargo Convoy Interrupts . | . . . . Stealth | -11 -10 -10 -10 --------- Run | Yrd Mat Min Sub Distress Signals . | . . . . Communications Jammed . | . . . . Distress Signals . | . . . . Times Spotted 24 | . 15 3 6 Peak Tracking Total 3 | . 3 2 2 Tactical Retreats . | . . . . Traps | -11 -10 -10 -10 ------- Run | Yrd Mat Min Sub Traps Triggered 4 | . 3 . 1 Indirectly . | . . . . Trap Hack Attempts . | . . . . Triggered . | . . . . Disarmed . | . . . . Reprogrammed . | . . . . Reused . | . . . . Traps Extracted . | . . . . Installed . | . . . . Triggered . | . . . . Machines | -11 -10 -10 -10 ---------- Run | Yrd Mat Min Sub Machines Disabled 3 | . 3 . . Max in Single Turn 3 | . 3 . . Machines Repaired . | . . . . Machines Dismantled . | . . . . Machines Sabotaged . | . . . . Overloaded Fab Kills . | . . . . Hacking | -11 -10 -10 -10 --------- Run | Yrd Mat Min Sub Machines Accessed 3 | . 3 . . Terminals 2 | . 2 . . Fabricators . | . . . . Repair Stations . | . . . . Recycling Units 1 | . 1 . . Scanalyzers . | . . . . Garrison Access . | . . . . Total Hacks 5 | . 5 . . Successful 3 | . 3 . . Failed 2 | . 2 . . Catastrophic . | . . . . Database Lockouts . | . . . . Manual . | . . . . Terminals 3 | . 3 . . Fabricators . | . . . . Repair Stations . | . . . . Recycling Units 2 | . 2 . . Scanalyzers . | . . . . Garrison Access . | . . . . Terminal Hacks 2 | . 2 . . Robot Analysis 1 | . 1 . . Zone Layout 1 | . 1 . . Fabricator Hacks . | . . . . Repair Station Hacks . | . . . . Recycling Unit Hacks 1 | . 1 . . Retrieve Components 1 | . 1 . . Scanalyzer . | . . . . Garrison Access Hacks . | . . . . Unauthorized Hacks . | . . . . Terminals . | . . . . Fabricators . | . . . . Repair Stations . | . . . . Recycling Units . | . . . . Scanalyzers . | . . . . Garrison Access . | . . . . Data Cores Recovered . | . . . . Used . | . . . . Hacking Detections 1 | . 1 . . Full Trace Events . | . . . . Feedback Events . | . . . . Feedback Blocked . | . . . . Robot Schematics Acquired . | . . . . Robots Built . | . . . . Authchips . | . . . . Time . | . . . . Total Robot Build Rating . | . . . . Part Schematics Acquired . | . . . . Parts Built . | . . . . Authchips . | . . . . Time . | . . . . Total Part Build Rating . | . . . . Part Studies Acquired . | . . . . Parts Repaired . | . . . . Time . | . . . . Parts Recycled . | . . . . Recycled Matter . | . . . . Retrieved Matter . | . . . . Retrieved Components . | . . . . Parts Scanalyzed . | . . . . Part Schematics Acquired . | . . . . Parts Damaged . | . . . . Bothacking | -11 -10 -10 -10 ------------ Run | Yrd Mat Min Sub Used RIF Installer . | . . . . Robots Hacked . | . . . . Non-combat . | . . . . Combat . | . . . . Robot Hacks Applied . | . . . . Relay Couplers Released . | . . . . Fabnet Peak Effective % . | . . . . Robots Rewired . | . . . . Allies Hacked . | . . . . Hacks Repelled . | . . . . Allies | -11 -10 -10 -10 -------- Run | Yrd Mat Min Sub Total Allies . | . . . . Largest Group . | . . . . Highest-Rated Group . | . . . . Highest-Rated Ally . | . . . . Total Orders . | . . . . Ally Attacks . | . . . . Total Damage . | . . . . Kills . | . . . . Allies Corrupted . | . . . . Allies Melted . | . . . . Intel | -11 -10 -10 -10 ------- Run | Yrd Mat Min Sub Active Infowar (turns) 1803 | . 299 442 1062 Terrain 1803 | . 299 442 1062 Robot Analysis Total 1 | . 1 . . Derelict Logs Recovered 1 | . . 1 . Drone Launches . | . . . . Drone Recoveries . | . . . . Exploration | -11 -10 -10 -10 ------------- Run | Yrd Mat Min Sub Turns Passed 2243 | 96 507 442 1198 Spaces Moved 1933 | 53 858 481 541 Core 140 | 25 1 . 114 Treads 574 | 21 . 126 427 Legs . | . . . . Wheels 34 | 7 27 . . Hover . | . . . . Flight 1185 | . 830 355 . Fastest Speed 37 | 50 37 37 100 Average Speed 78 | 101 39 69 147 Slowest Speed 160 | 160 150 160 160 Overloaded Moves . | . . . . Propulsion Burnouts . | . . . . Robots Hopped 5 | . 5 . . Potential Cave-ins . | . . . . Cave-ins Triggered . | . . . . Exploration Rate (%) 59 | 4 96 97 41 Regions Visited 3 Branch Regions 2 Pre-discovered Areas 1 | . . . 1 Known Exits Taken 3 | 1 1 1 . Unknown Exits Taken . | . . . . Scrap Searched 2 | . . . 2 Spaces Dug . | . . . . Terrain Destroyed 16 | . 16 . . Melee . | . . . . Projectile . | . . . . AOE 16 | . 16 . . Terrain Rammed . | . . . . Walls Destroyed . | . . . . Machines Disabled . | . . . . Actions | -11 -10 -10 -10 --------- Run | Yrd Mat Min Sub Total 2463 | 79 938 570 876 Wait 358 | 2 18 58 280 Move 1920 | 52 847 480 541 Hop 5 | . 5 . . Pick Up 18 | 8 5 4 1 Fast Attach 7 | 1 5 1 . Attach 16 | 6 5 4 1 Detach 5 | 2 1 2 . Swap 5 | . 1 4 . Drop 11 | . 5 6 . Fire 118 | 8 46 11 53 Melee . | . . . . Ram . | . . . . Kick . | . . . . Crush . | . . . . Escape Stasis . | . . . . Rewire . | . . . . Trap . | . . . . Miscellaneous . | . . . . Route ------- -11/Scrapyard -10/Materials (discovered 5 exits: *Mat x3 / *Min / *Sub) -10/Mines (discovered 3 exits: *Mat x2 / *Sub) -10/Subcaves (discovered 1 exit: *Mat) History --------- Turn | Location | Event 7 | -11/Scrapyard | Identified exit to Materials 7 | -11/Scrapyard | Discovered exit to Materials (range 15) 97 | -11/Scrapyard | Entered Materials 97 | -10/Materials | Evolved 1 slot: Utility x1 217 | -10/Materials | Identified exit to Materials 217 | -10/Materials | Discovered exit to Materials (range 16) 306 | -10/Materials | Build established: Hacker-Mutant 344 | -10/Materials | Discovered exit to Materials (range 16) 390 | -10/Materials | Identified exit to Subcaves 390 | -10/Materials | Discovered exit to Subcaves (range 9) 432 | -10/Materials | Identified exit to Mines 432 | -10/Materials | Discovered exit to Mines (range 8) 466 | -10/Materials | Discovered exit to Materials (range 8) 597 | -10/Materials | Derelicts attacked the area 604 | -10/Materials | Entered Mines 613 | -10/Mines | Build established: Scavenger-Mutant 618 | -10/Mines | Met a Derelict bent on vengeance 618 | -10/Mines | Discovered exit to Materials (range 5) 665 | -10/Mines | Joined a pair of Derelicts in attacking an 0b10 outpost 968 | -10/Mines | Discovered exit to Materials (range 8) 989 | -10/Mines | Found a hidden stash of uninstalled traps 1046 | -10/Mines | Entered Subcaves 1047 | -10/Subcaves | Approached by a straggling Scientist 1683 | -10/Subcaves | Identified exit to Materials 1683 | -10/Subcaves | Discovered exit to Materials (range 9) 1909 | -10/Subcaves | Core integrity fell below 50% 2015 | -10/Subcaves | Learned location of Zion (-7) 2015 | -10/Subcaves | Met a Zionite searching for "candidates" 2112 | -10/Subcaves | Core integrity fell below 20% 2139 | -10/Subcaves | Lost 3 parts (2n1u) 2244 | -10/Subcaves | Destroyed by Shrapnel Trap Last Messages --------------- 02125_ Found 53 Matter. 02126_ Searching scrap... 02126_ Found Sub. Monowheel. 02126_ Found 30 Matter. 02130_ Acquired Barrage Gun. 02136_ Subatomizers dissect the Sub. Laser. 0F-HOO(c): "I think it's somewhere northeast of here" 02170_ Subatomizers dissect the Sub. Laser. 02179_ System corrupted: Component data lost. 02185_ Subatomizers dissect the Sub. Laser, destroying it. 0F-HOO(c): "I think it's somewhere northeast of here" 02237_ RV-S1P(R) affixes Scrap Shield Fragment to Scrap Shield. 02239_ RV-S1P(R) destroyed. 02244_ Triggered Shrapnel Trap. 02244_ An expanding cloud of shrapnel blasts out in all directions. Map ----- +----------------------------------------------------+ | ?????????????????????????????? ???#?? | | ?????????????????????????????? #??#?? | | ?????????????????????????????????#?#? | | ????????????????????????????????##??# | | ???????????????????????????????????## | | ????????????????????????????????#???# | | ???????????????????????????????##?##? | | ????????????????????????????????????# | | ????????????????????????????????###?? | | ????????????????????????????????????# | | ????????????????????????????????????# | | ????????????????????????????????????? | | ????????????????????????????????????? | | ????????????????????????????????????? | | ????????????????????????????????????? | | ????????????????????????????????????? | | ???????????????????# ??????????????? | | ?????????????????? ##?#??????????? | | ?????????????????? ## #?????????? | | ??????????????????# ??????????? | | ?????????????????## #??????????? | | ?????#########??## ###????????? | | ?????#<< <<###? #????????? | | ?????<< <<